bitfinex-derivatives/quotes_SOLF0:USTF0_20260121
["timestamp","ask_amount","ask_price","bid_price","bid_amount"]
[1769023865813,1.40289229,129.86,129.73,108.0022]
[1769023866001,1.40289229,129.85,129.74,107.9998]
[1769023866202,293.12942003,129.84,129.73,108.0022]
[1769023866397,293.12942003,129.84,129.68,432.1791]
[1769023866398,1.46942003,129.88,129.79,107.955]
[1769023866607,1.46942003,129.88,129.77,107.9748]
[1769023867006,1.46942003,129.88,129.73,108.0031]
[1769023867007,1.53526718,129.87,129.73,108.0031]
[1769023867219,1.53526718,129.87,129.72,108.014]
[1769023867220,1.53526718,129.84,129.72,108.014]
[1769023867524,107.8943,129.87,129.65,115.0174]
[1769023867525,1.53526718,129.78,129.65,115.0174]
[1769023867714,1.53526718,129.73,129.6,108.1117]
[1769023868011,1.59985238,129.71,129.57,125.77892063]
[1769023868309,293.21985238,129.71,129.6,108.1134]
[1769023868604,1.59985238,129.7,129.6,108.1128]
[1769023868811,1.59985238,129.7,129.61,108.1056]
[1769023869003,293.21985238,129.74,129.62,108.0971]
[1769023869204,1.66335894,129.72,129.62,108.0961]
[1769023869406,293.30335894,129.72,129.6,108.1097]
[1769023869605,293.30335894,129.72,129.61,108.1056]
[1769023869816,293.30335894,129.72,129.6,108.1134]
[1769023870208,293.30335894,129.72,129.61,108.1054]
[1769023870413,293.32335894,129.72,129.61,6.9493]
[1769023870610,1.66335894,129.72,129.62,108.0943]
[1769023870805,1.66335894,129.72,129.61,108.1057]
[1769023871010,1.66335894,129.72,129.62,108.0957]
[1769023871207,1.66335894,129.72,129.6,125.75672063]
[1769023871512,1.66335894,129.72,129.63,115.0373]
[1769023871813,109.74217379,129.8,129.66,125.70932063]
[1769023872019,1.84822266,129.84,129.7,125.67592063]
[1769023872206,109.77492266,129.83,129.7,17.64332063]
[1769023872513,1.84822266,129.83,129.7,17.64332063]
[1769023872718,1.84822266,129.79,129.66,17.64332063]
[1769023872901,109.77342266,129.83,129.69,125.68212063]
[1769023873106,293.58775357,129.82,129.71,6.9444]
[1769023873310,1.90775357,129.82,129.71,114.969]
[1769023873711,1.90775357,129.82,129.71,125.66792063]
[1769023873913,1.90775357,129.86,129.73,108.0048]
[1769023874130,107.8861,129.88,129.73,108.0048]
[1769023874131,107.8868,129.88,129.75,17.64332063]
[1769023874412,26.77196889,129.9,129.74,107.9961]
[1769023874413,399.5741,129.87,129.74,17.64332063]
[1769023874608,291.68,129.86,129.74,125.64242063]
[1769023874916,1.96629945,129.87,129.76,17.64332063]
[1769023875113,293.64629945,129.87,129.76,17.64332063]
[1769023875307,109.86579945,129.87,129.73,125.65102063]
[1769023875510,107.9176,129.84,129.73,17.64332063]
[1769023875709,401.51889945,129.87,129.73,125.64842063]
[1769023875911,107.9043,129.86,129.73,17.64332063]
[1769023876111,110.04387644,129.86,129.73,17.64332063]
[1769023876315,107.8868,129.88,129.75,18.08954014]
[1769023876508,110.01777644,129.89,129.76,18.08954014]
[1769023876816,291.64,129.88,129.76,25.03084014]
[1769023877324,406.4683,129.87,129.76,18.08954014]
[1769023877521,291.64,129.87,129.76,18.08954014]
[1769023877730,107.8585,129.91,129.79,18.08954014]
[1769023877907,408.63730426,129.9,129.79,18.08954014]
[1769023878108,107.8772,129.89,129.75,126.07714014]
[1769023878313,107.8772,129.89,129.76,18.08954014]
[1769023878619,117.07727827,129.87,129.76,18.08954014]
[1769023878825,9.18467827,129.87,129.76,18.08954014]
[1769023879014,291.62,129.88,129.77,18.08954014]
[1769023879220,107.8923,129.87,129.77,18.08954014]
[1769023879421,110.20430388,129.86,129.73,18.08954014]
[1769023879724,107.9097,129.85,129.73,18.08954014]
[1769023879913,399.5097,129.85,129.73,18.08954014]
[1769023880113,107.876,129.89,129.78,18.08954014]
[1769023880314,401.81851203,129.88,129.74,126.08784014]
[1769023880513,401.81851203,129.88,129.75,18.08954014]
[1769023880714,291.58,129.87,129.77,25.03034014]
[1769023881318,110.26306163,129.92,129.79,18.08954014]
[1769023881619,107.8751,129.89,129.79,18.08954014]
[1769023881813,107.8751,129.89,129.74,107.9983]
[1769023881814,107.8852,129.88,129.75,18.08954014]
[1769023882015,107.8755,129.89,129.75,18.08954014]
[1769023882016,107.8755,129.89,129.76,18.08954014]
[1769023882215,107.8836,129.88,129.76,18.08954014]
[1769023882415,2.40696163,129.9,129.78,18.08954014]
[1769023882616,107.8608,129.91,129.79,18.08954014]
[1769023882816,291.56,129.9,129.79,18.08954014]
[1769023883016,291.56,129.89,129.79,18.08954014]
[1769023883424,110.35191332,129.93,129.76,107.983]
[1769023883425,401.89081332,129.93,129.82,18.08954014]
[1769023883920,107.8616,129.91,129.82,18.08954014]
[1769023884116,114.8015,129.9,129.78,25.03004014]
[1769023884326,6.9347,129.9,129.78,25.03004014]
[1769023884523,107.8761,129.89,129.78,18.08954014]
[1769023884823,6.9343,129.9,129.78,25.02974014]
[1769023885020,2.60600719,129.95,129.83,18.08954014]
[1769023885213,110.43230719,129.95,129.83,18.08954014]
[1769023885415,2.60600719,129.92,129.81,126.02484014]
[1769023885616,2.60600719,129.97,129.86,18.08954014]
[1769023885915,6.9319,129.95,129.86,18.08954014]
[1769023886317,2.65365714,130.01,129.88,18.08954014]
[1769023886526,107.7642,130.03,129.91,18.08954014]
[1769023886712,107.7769,130.01,129.91,18.08954014]
[1769023886918,107.7924,129.99,129.86,18.08954014]
[1769023887115,107.8111,129.97,129.86,18.08954014]
[1769023887318,107.8297,129.95,129.86,18.08954014]
[1769023887519,107.8111,129.97,129.86,18.08954014]
[1769023887722,6.9308,129.97,129.86,18.08954014]
[1769023887916,291.5,129.98,129.87,18.08954014]
[1769023888314,291.46,129.98,129.87,18.08954014]
[1769023888519,107.8021,129.98,129.87,18.08954014]
[1769023888716,399.2572,129.99,129.87,18.08954014]
[1769023889019,107.835,129.94,129.87,18.08954014]
[1769023889325,107.8271,129.95,129.83,18.08954014]
[1769023889518,107.8271,129.95,129.84,7.19659187]
[1769023889519,107.8453,129.93,129.84,7.19659187]
[1769023889719,107.8453,129.93,129.83,18.08954014]
[1769023889720,107.8589,129.91,129.83,18.08954014]
[1769023889918,107.8589,129.91,129.79,6.9399]
[1769023889919,107.8589,129.91,129.8,18.08954014]
[1769023890225,6.9345,129.9,129.8,18.08954014]
[1769023890423,2.79142757,129.94,129.81,25.30005472]
[1769023890626,291.4,129.93,129.83,18.08954014]
[1769023890822,291.4,129.92,129.83,18.08954014]
[1769023891424,107.8055,129.98,129.83,18.08954014]
[1769023891425,107.7885,130.0,129.86,18.08954014]
[1769023891638,291.4,130.01,129.9,25.02344014]
[1769023891824,2.87991535,130.02,129.91,18.08954014]
[1769023892023,399.1806,130.01,129.91,18.08954014]
[1769023892228,298.3284,130.01,129.91,18.08954014]
[1769023892427,2.9232563,130.0,129.87,18.08954014]
[1769023892727,2.9232563,129.99,129.87,18.08954014]
[1769023892918,291.38,129.98,129.87,18.08954014]
[1769023893120,2.9232563,129.99,129.88,125.97234014]
[1769023893319,6.9281,130.02,129.9,25.02334014]
[1769023893526,291.36,129.99,129.9,25.02334014]
[1769023893736,19.42717482,130.03,129.91,7.21772509]
[1769023893917,19.42717482,130.03,129.9,18.08954014]
[1769023893918,291.36,129.99,129.9,18.08954014]
[1769023894122,124.18373589,130.08,129.92,18.08954014]
[1769023894317,3.00718014,130.03,129.92,18.08954014]
[1769023894525,110.78428014,130.01,129.88,18.08954014]
[1769023894732,3.00718014,130.0,129.89,7.22636438]
[1769023895026,3.00718014,130.0,129.9,7.22636438]
[1769023895228,3.00718014,130.0,129.91,7.22515467]
[1769023895424,294.32718014,130.0,129.88,18.08954014]
[1769023895619,3.00718014,130.0,129.89,7.2374976]
[1769023895825,6.9302,129.98,129.9,7.2374976]
[1769023896026,6.9302,129.98,129.88,18.08954014]
[1769023896027,402.20420773,129.99,129.88,18.08954014]
[1769023896329,3.08880773,129.96,129.84,25.02684014]
[1769023896826,3.08880773,129.96,129.8,18.08954014]
[1769023896827,107.8254,129.95,129.8,18.08954014]
[1769023897028,16.46153589,129.96,129.82,18.08954014]
[1769023897231,291.3,129.95,129.82,18.08954014]
[1769023897825,399.1282,129.95,129.82,18.08954014]
[1769023898026,6.935,129.89,129.77,25.03054014]
[1769023898226,6.935,129.89,129.78,18.08954014]
[1769023898433,6.935,129.89,129.75,107.9849]
[1769023898434,107.9012,129.86,129.74,18.08954014]
[1769023898627,107.8851,129.88,129.74,18.08954014]
[1769023898628,23.13,129.89,129.76,18.08954014]
[1769023898834,291.28,129.88,129.76,18.08954014]
[1769023899036,291.28,129.87,129.76,18.08954014]
[1769023899234,6.9357,129.88,129.76,18.08954014]
[1769023899436,399.1933,129.87,129.76,18.08954014]
[1769023899931,6.9367,129.86,129.76,18.08954014]
[1769023900132,291.3,129.87,129.76,18.08954014]
[1769023900629,124.31633589,129.92,129.78,126.05544014]
[1769023900630,16.46153589,129.92,129.78,126.05544014]
[1769023900839,291.3,129.91,129.78,18.08954014]
[1769023901033,6.9343,129.9,129.78,18.08954014]
[1769023901233,107.8362,129.94,129.79,18.08954014]
[1769023901531,298.253,129.93,129.82,18.08954014]
[1769023901730,107.8614,129.91,129.77,18.08954014]
[1769023902039,107.8727,129.9,129.77,18.08954014]
[1769023902234,107.8839,129.88,129.77,18.08954014]
[1769023902628,6.9372,129.85,129.72,18.08954014]
[1769023902828,107.894,129.87,129.73,18.08954014]
[1769023903031,107.8839,129.88,129.73,18.08954014]
[1769023903341,107.8614,129.91,129.76,18.08954014]
[1769023903535,291.34,129.87,129.76,18.08954014]
[1769023903835,291.34,129.87,129.76,25.03104014]
[1769023904030,291.34,129.88,129.77,18.08954014]
[1769023904331,6.9368,129.86,129.73,25.03274014]
[1769023904535,415.68523589,129.88,129.73,18.08954014]
[1769023905131,107.8923,129.87,129.74,18.08954014]
[1769023905329,399.2633,129.86,129.74,18.08954014]
[1769023905528,399.2633,129.86,129.71,108.0201]
[1769023905529,107.9263,129.83,129.7,17.90366064]
[1769023905834,107.9263,129.83,129.71,17.90366064]
[1769023905835,6.9389,129.82,129.71,17.90366064]
[1769023906227,107.9416,129.81,129.68,6.9457]
[1769023906533,107.9416,129.81,129.67,17.90366064]
[1769023906534,291.36,129.81,129.69,17.90366064]
[1769023906739,6.9405,129.79,129.69,17.90366064]
[1769023907336,298.3203,129.79,129.69,17.90366064]
[1769023908335,291.38,129.83,129.71,17.90366064]
[1769023908648,107.9434,129.81,129.72,7.21154682]
[1769023908840,107.9434,129.81,129.63,17.90366064]
[1769023908841,107.9833,129.76,129.63,17.90366064]
[1769023909028,107.9868,129.76,129.64,24.85156064]
[1769023909332,107.9868,129.76,129.6,108.1116]
[1769023909333,108.0116,129.73,129.6,17.90366064]
[1769023909535,399.4116,129.73,129.6,17.90366064]
[1769023909737,108.0039,129.74,129.62,17.90366064]
[1769023909936,6.9442,129.72,129.62,17.90366064]
[1769023910344,291.4,129.73,129.62,17.90366064]
[1769023911039,291.42,129.73,129.63,24.85206064]
[1769023912134,37.0082,129.81,129.66,17.90366064]
[1769023912135,107.9529,129.8,129.66,17.90366064]
[1769023912335,291.48,129.79,129.66,17.90366064]
[1769023912550,291.48,129.79,129.63,125.99506064]
[1769023912551,6.9425,129.75,129.63,125.99506064]
[1769023912741,291.48,129.75,129.64,17.90366064]
[1769023914347,291.48,129.75,129.66,6.9469]
[1769023915045,107.969,129.78,129.66,6.9469]
[1769023915236,291.54,129.77,129.65,17.90366064]
[1769023915441,6.9425,129.75,129.65,17.90366064]
[1769023915641,291.54,129.77,129.65,17.90366064]
[1769023916036,108.0,129.74,129.61,17.90366064]
[1769023916639,108.0,129.74,129.58,17.90366064]
[1769023916640,108.0202,129.72,129.58,17.90366064]
[1769023916845,108.0273,129.71,129.58,17.90366064]
[1769023917453,6.9446,129.71,129.59,17.90366064]
[1769023917642,291.56,129.7,129.59,126.02596064]
[1769023917841,291.56,129.7,129.56,126.04676064]
[1769023918040,6.9462,129.68,129.56,24.85586064]
[1769023918246,6.9462,129.68,129.56,17.90366064]
[1769023918446,108.0441,129.69,129.56,17.90366064]
[1769023918751,108.0441,129.69,129.49,126.10696064]
[1769023918752,108.0711,129.66,129.49,126.10696064]
[1769023919046,6.9491,129.63,129.51,18.8164901]
[1769023919249,291.6,129.62,129.51,18.8164901]
[1769023920048,291.6,129.62,129.51,25.7712901]
[1769023920242,108.0559,129.68,129.54,18.8164901]
[1769023920443,291.62,129.67,129.56,18.8164901]
[1769023920744,6.9446,129.71,129.59,18.8164901]
[1769023920954,108.0252,129.71,129.59,18.8164901]
[1769023921248,291.68,129.71,129.6,6.9498]
[1769023921448,107.9979,129.75,129.61,126.9243901]
[1769023921656,399.6842,129.74,129.61,18.8164901]
[1769023922149,107.9759,129.77,129.64,18.8164901]
[1769023922453,6.9404,129.79,129.68,18.8164901]
[1769023922651,399.6455,129.81,129.68,18.8164901]
[1769023922841,6.9409,129.78,129.68,18.8164901]
[1769023923046,107.9666,129.78,129.68,18.8164901]
[1769023923447,6.942,129.76,129.68,18.8164901]
[1769023923653,107.9951,129.75,129.61,126.9218901]
[1769023924156,107.9799,129.77,129.63,18.8164901]
[1769023924355,107.9438,129.81,129.67,126.8739901]
[1769023924552,6.9394,129.81,129.7,6.9449]
[1769023924753,107.9426,129.81,129.69,18.8164901]
[1769023924960,399.6361,129.82,129.69,18.8164901]
[1769023925155,6.9383,129.83,129.7,18.8164901]
[1769023925360,6.9383,129.83,129.71,18.8164901]
[1769023925655,131.0163,129.88,129.7,108.033]
[1769023925656,107.8743,129.9,129.77,18.8164901]
[1769023925855,6.9357,129.88,129.77,18.8164901]
[1769023926056,107.8406,129.94,129.8,18.8164901]
[1769023926256,114.7533,129.96,129.83,18.8164901]
[1769023926459,107.7898,130.0,129.85,18.8164901]
[1769023926755,124.23163589,130.02,129.86,126.7104901]
[1769023926955,107.7572,130.04,129.89,18.8164901]
[1769023927259,107.7701,130.02,129.89,18.8164901]
[1769023927671,107.7702,130.02,129.89,18.8164901]
[1769023928172,107.7629,130.03,129.89,18.8164901]
[1769023928372,107.7559,130.04,129.9,18.8164901]
[1769023928561,107.7559,130.04,129.91,18.8164901]
[1769023928764,107.764,130.03,129.91,18.8164901]
[1769023928964,16.46153589,130.05,129.91,18.8164901]
[1769023929165,107.7483,130.05,129.93,18.8164901]
[1769023929571,107.738,130.06,129.93,18.8164901]
[1769023929873,114.6477,130.08,129.94,18.8164901]
[1769023930077,124.17723589,130.09,129.96,18.8164901]
[1769023930274,107.6986,130.11,129.96,18.8164901]
[1769023930477,114.622,130.11,129.96,18.8164901]
[1769023931075,107.7132,130.09,129.97,18.8164901]
[1769023931281,107.7132,130.09,129.91,18.8164901]
[1769023931282,215.4608,130.07,129.91,18.8164901]
[1769023931479,107.746,130.05,129.92,18.8164901]
[1769023931773,107.7537,130.04,129.89,18.8164901]
[1769023931981,107.7948,129.99,129.89,18.8164901]
[1769023932183,107.8147,129.97,129.83,18.8164901]
[1769023932379,107.8199,129.96,129.83,18.8164901]
[1769023932573,107.7621,130.03,129.85,18.8164901]
[1769023932878,107.7621,130.03,129.84,107.9138]
[1769023932879,107.7432,130.05,129.9,18.8164901]
[1769023933177,107.7557,130.04,129.9,18.8164901]
[1769023933379,107.7557,130.04,129.91,18.8164901]
[1769023933380,107.7537,130.04,129.91,18.8164901]
[1769023933879,114.6654,130.06,129.93,18.8164901]
[1769023933880,107.7368,130.06,129.93,18.8164901]
[1769023934079,107.7125,130.09,129.97,18.8164901]
[1769023934482,107.7201,130.08,129.97,18.8164901]
[1769023934678,107.7395,130.06,129.97,18.8164901]
[1769023934976,107.7395,130.06,129.92,18.8164901]
[1769023935173,107.754,130.04,129.92,18.8164901]
[1769023935572,107.7395,130.06,129.93,18.6174366]
[1769023935886,107.7124,130.09,129.93,18.6174366]
[1769023935887,107.7287,130.07,129.93,18.6174366]
[1769023936182,107.7287,130.07,129.91,107.8555]
[1769023936183,107.7294,130.07,129.95,18.6174366]
[1769023936378,107.7059,130.1,129.95,18.6174366]
[1769023936679,124.15936903,130.12,129.95,18.6174366]
[1769023936879,399.0366,130.09,129.95,18.6174366]
[1769023937178,1.33882199,130.08,129.95,18.6174366]
[1769023937475,298.2041,130.1,129.95,18.6174366]
[1769023937684,405.9053,130.1,129.95,18.6174366]
[1769023937877,107.7201,130.08,129.95,18.6174366]
[1769023938183,398.9734,130.09,129.95,18.6174366]
[1769023938382,107.7391,130.06,129.89,18.6174366]
[1769023938583,114.6652,130.06,129.9,18.6174366]
[1769023938788,107.7634,130.03,129.9,18.6174366]
[1769023938984,107.7391,130.06,129.9,18.6174366]
[1769023939381,107.7615,130.03,129.9,18.6174366]
[1769023939682,107.7816,130.01,129.9,18.6174366]
[1769023939890,107.7615,130.03,129.9,18.6174366]
[1769023940184,114.6958,130.02,129.9,18.6174366]
[1769023940384,6.9283,130.02,129.9,18.6174366]
[1769023940781,107.7552,130.04,129.9,18.6174366]
[1769023941087,107.7406,130.06,129.9,18.6174366]
[1769023941381,114.6664,130.06,129.9,18.6174366]
[1769023941584,24.64161693,130.08,129.93,18.6174366]
[1769023941783,107.7179,130.08,129.94,18.6174366]
[1769023941983,114.6426,130.08,129.94,18.6174366]
[1769023942380,107.7272,130.07,129.94,18.6174366]
[1769023942582,107.7468,130.05,129.94,18.6174366]
[1769023942781,24.64161693,130.09,129.94,18.6174366]
[1769023942985,107.727,130.07,129.94,18.6174366]
[1769023943381,6.9262,130.06,129.94,18.6174366]
[1769023943590,114.6637,130.06,129.94,18.6174366]
[1769023943785,107.7187,130.08,129.94,18.6174366]
[1769023944083,24.64161693,130.09,129.95,18.6174366]
[1769023944483,114.6523,130.07,129.95,18.6174366]
[1769023944689,107.7266,130.07,129.95,18.6174366]
[1769023944886,107.7209,130.08,129.95,18.6174366]
[1769023945184,315.78161693,130.09,129.95,18.6174366]
[1769023945380,132.35491693,130.09,129.95,18.6174366]
[1769023945986,24.64161693,130.09,129.95,18.6174366]
[1769023946288,139.27571693,130.09,129.95,25.5487366]
[1769023946480,132.35141693,130.09,129.96,18.6174366]
[1769023947092,107.7291,130.07,129.96,18.6174366]
[1769023947384,107.7493,130.05,129.91,18.6174366]
[1769023947890,114.6757,130.05,129.92,18.6174366]
[1769023948088,6.9264,130.05,129.92,18.6174366]
[1769023948384,114.6461,130.08,129.94,25.5491366]
[1769023948586,6.9249,130.08,129.95,18.6174366]
[1769023948889,6.9238,130.1,129.99,18.6174366]
[1769023949189,9.55176903,130.12,130.0,18.6174366]
[1769023949386,117.24036903,130.12,130.01,18.6174366]
[1769023949775,9.55176903,130.12,130.01,18.6174366]
[1769023950093,107.7176,130.08,129.96,18.6174366]
[1769023950283,107.7021,130.1,129.96,18.6174366]
[1769023950791,107.7374,130.06,129.94,18.6174366]
[1769023951089,107.7021,130.1,129.88,18.6174366]
[1769023951090,1.33869324,130.1,129.88,18.6174366]
[1769023951292,1.33869324,130.1,129.96,18.6174366]
[1769023951293,107.7353,130.06,129.96,18.6174366]
[1769023951789,6.9253,130.07,129.96,18.6174366]
[1769023952103,107.6936,130.11,129.97,18.6174366]
[1769023952286,6.9243,130.09,129.98,6.9297]
[1769023952483,107.7019,130.1,129.98,18.6174366]
[1769023953081,107.7098,130.09,129.98,18.6174366]
[1769023953280,107.7298,130.07,129.94,18.6174366]
[1769023953483,107.7526,130.04,129.94,18.6174366]
[1769023953688,107.7847,130.0,129.91,18.6174366]
[1769023953981,107.7597,130.03,129.91,18.6174366]
[1769023954291,6.9276,130.03,129.92,18.6174366]
[1769023954888,6.9276,130.03,129.89,107.8724]
[1769023954889,107.7615,130.03,129.93,18.6174366]
[1769023955093,107.7454,130.05,129.93,18.6174366]
[1769023955492,107.7508,130.04,129.93,18.6174366]
[1769023956094,107.7618,130.03,129.93,18.6174366]
[1769023956392,6.9273,130.03,129.93,18.6174366]
[1769023956895,107.7618,130.03,129.9,25.5513366]
[1769023957095,107.7684,130.02,129.9,18.6174366]
[1769023957391,107.754,130.04,129.9,18.6174366]
[1769023957585,107.7454,130.05,129.91,18.6174366]
[1769023957892,107.7454,130.05,129.9,107.8619]
[1769023957893,6.9253,130.07,129.95,18.6174366]
[1769023958292,107.7451,130.05,129.91,18.6174366]
[1769023958694,6.9264,130.05,129.93,25.5496366]
[1769023958897,6.9264,130.05,129.94,18.6174366]
[1769023959098,107.7014,130.1,129.97,25.5477366]
[1769023959296,132.32151693,130.13,129.97,18.6174366]
[1769023959496,107.7022,130.1,129.97,18.6174366]
[1769023959896,6.9238,130.1,129.98,25.5470366]
[1769023960202,107.6943,130.11,129.99,18.6174366]
[1769023960400,117.23876903,130.12,129.99,25.5467366]
[1769023960700,107.7014,130.1,129.99,18.6174366]
[1769023960888,6.9249,130.08,129.99,18.6174366]
[1769023961088,107.6946,130.11,129.99,18.6174366]
[1769023961291,6.9243,130.09,129.99,25.5467366]
[1769023961797,9.55176903,130.12,129.99,18.6174366]
[1769023962296,107.7013,130.1,130.0,18.6174366]
[1769023962484,107.6953,130.11,130.0,18.6174366]
[1769023962901,107.6953,130.11,129.96,18.6174366]
[1769023962902,113.91644171,130.09,129.96,18.6174366]
[1769023963096,107.7182,130.08,129.96,18.6174366]
[1769023963401,15.75611074,130.12,129.98,18.6174366]
[1769023963695,6.9237,130.1,130.0,25.5461366]
[1769023963887,9.55176903,130.12,130.0,18.6174366]
[1769023964092,9.55176903,130.12,130.01,18.6174366]
[1769023964298,107.6935,130.11,130.01,18.6174366]
[1769023964698,6.9248,130.08,129.97,25.5476366]
[1769023964902,9.55176903,130.12,130.0,18.6174366]
[1769023965089,9.55176903,130.12,130.01,18.6174366]
[1769023965288,6.9234,130.11,130.01,18.6174366]
[1769023965599,9.55176903,130.12,130.01,18.6174366]
[1769023965799,16.47466903,130.12,130.02,19.99701456]
[1769023965998,117.23906903,130.12,130.02,19.99701456]
[1769023966292,9.55176903,130.12,130.02,19.99701456]
[1769023966699,107.7014,130.1,129.98,19.99701456]
[1769023966892,6.9254,130.07,129.98,19.99701456]
[1769023967489,113.94124171,130.06,129.94,19.99701456]
[1769023967697,107.7433,130.05,129.94,19.99701456]
[1769023967887,6.9292,130.0,129.9,26.93101456]
[1769023968293,6.9292,130.0,129.9,19.99701456]
[1769023968497,107.7763,130.01,129.9,19.99701456]
[1769023968704,107.7763,130.01,129.86,19.99701456]
[1769023968705,107.7945,129.99,129.86,19.99701456]
[1769023968901,107.7701,130.02,129.88,19.99701456]
[1769023969191,6.9286,130.01,129.9,6.9339]
[1769023969392,107.7552,130.04,129.91,19.99701456]
[1769023969693,6.9271,130.04,129.93,6.9324]
[1769023970091,113.92464171,130.08,129.93,19.99701456]
[1769023970296,107.7262,130.07,129.93,19.99701456]
[1769023970698,107.7392,130.06,129.94,19.99701456]
[1769023971004,6.20434171,130.05,129.92,19.99701456]
[1769023971493,107.7392,130.06,129.92,19.99701456]
[1769023971694,6.20434171,130.08,129.96,19.99701456]
[1769023971893,6.20434171,130.11,129.99,19.99701456]
[1769023972101,107.7123,130.09,129.99,19.99701456]
[1769023972300,107.7123,130.09,129.96,26.92781456]
[1769023972506,107.7123,130.09,129.97,19.99701456]
[1769023972700,6.9254,130.07,129.97,26.92731456]
[1769023972907,6.9254,130.07,129.97,19.99701456]
[1769023973108,107.6947,130.11,129.99,26.92621456]
[1769023973295,113.91484171,130.09,129.99,19.99701456]
[1769023973805,6.20434171,130.09,129.99,19.99701456]
[1769023974907,6.20434171,130.09,129.97,19.99701456]
[1769023975205,16.6591103,130.12,129.97,19.99701456]
[1769023975395,6.20434171,130.1,129.97,26.92701456]
[1769023975597,6.20434171,130.1,129.97,19.99701456]
[1769023975798,6.20434171,130.07,129.94,19.99701456]
[1769023976001,7.10734127,130.09,129.96,19.99701456]
[1769023976196,6.20434171,130.1,129.98,19.99701456]
[1769023976401,9.55176903,130.12,130.01,26.92521456]
[1769023976603,9.55176903,130.12,130.01,19.99701456]
[1769023976811,9.55176903,130.12,130.02,19.99701456]
[1769023977308,9.55176903,130.12,130.02,26.92461456]
[1769023977512,9.55176903,130.12,130.02,19.99701456]
[1769023977712,9.55176903,130.12,130.02,26.92461456]
[1769023978011,9.55176903,130.12,130.01,127.76671456]
[1769023978196,9.55176903,130.12,130.02,19.99701456]
[1769023978403,9.55176903,130.12,130.04,6.9266]
[1769023979304,9.55176903,130.12,130.03,20.11294112]
[1769023979506,9.55176903,130.12,130.04,127.86314112]
[1769023979704,9.55176903,130.12,130.04,20.11294112]
[1769023979900,9.55176903,130.12,130.04,127.85884112]
[1769023980203,9.55176903,130.12,130.06,6.9254]
[1769023980398,9.55176903,130.12,130.01,20.11294112]
[1769023980609,9.55176903,130.12,129.97,20.11294112]
[1769023980610,107.6966,130.11,129.97,20.11294112]
[1769023980813,6.9258,130.06,129.93,27.04524112]
[1769023981003,6.20434171,130.06,129.93,20.11294112]
[1769023981199,114.82594127,130.08,129.93,20.11294112]
[1769023981505,29.33434171,130.04,129.89,107.8736]
[1769023981705,107.7889,130.0,129.84,134.22888283]
[1769023981908,23.13,129.97,129.84,107.9159]
[1769023982106,107.7789,130.01,129.83,107.9247]
[1769023982107,13.31168298,130.01,129.87,128.00464112]
[1769023982311,13.31168298,130.04,129.91,127.97064112]
[1769023982513,107.7402,130.06,129.91,134.90404112]
[1769023982701,107.7614,130.03,129.87,134.20898283]
[1769023982907,107.7614,130.03,129.87,27.04874112]
[1769023982908,13.13364171,130.0,129.87,27.04874112]
[1769023983106,117.15215818,130.05,129.92,20.11294112]
[1769023983107,7.10734127,130.05,129.92,20.11294112]
[1769023983306,29.33434171,130.06,129.94,107.833]
[1769023983502,114.652,130.07,129.94,27.04474112]
[1769023983698,113.93084171,130.07,129.94,20.11294112]
[1769023983898,6.9268,130.04,129.9,20.11294112]
[1769023984112,6.20434171,130.01,129.89,127.98574112]
[1769023984311,23.13,130.03,129.89,127.98574112]
[1769023984606,107.7846,130.0,129.85,128.01464112]
[1769023984811,6.20434171,129.95,129.8,128.05714112]
[1769023985001,6.20434171,129.95,129.81,107.9409]
[1769023985405,29.33434171,129.95,129.82,107.9313]
[1769023985598,6.20434171,129.95,129.84,128.02844112]
[1769023985815,6.20434171,129.95,129.84,20.11294112]
[1769023986003,23.13,129.98,129.84,20.11294112]
[1769023986004,29.33434171,129.98,129.86,107.8997]
[1769023986201,6.20434171,129.98,129.85,107.9075]
[1769023986409,6.20434171,129.98,129.87,107.8889]
[1769023986603,7.10734127,130.04,129.9,107.8649]
[1769023986809,7.10734127,130.04,129.86,107.8979]
[1769023986810,6.20434171,129.99,129.87,107.8883]
[1769023987100,6.20434171,129.99,129.87,6.9356]
[1769023987305,6.20434171,129.96,129.85,128.01934112]
[1769023987505,6.20434171,129.96,129.85,20.11294112]
[1769023988012,6.20434171,129.96,129.83,107.921]
[1769023988213,13.13384171,129.99,129.86,134.94864112]
[1769023988400,6.20434171,129.96,129.83,107.921]
[1769023988601,6.20434171,129.96,129.79,107.9521]